[Event "*** Titled Tuesday Blitz"]
[Site "Chess.com"]
[Date "2019.11.05"]
[Round "6"]
[White "joshdaruca"]
[Black "Cruel_Yaro"]
[Result "0-1"]
[WhiteElo "2689"]
[BlackElo "2871"]
[TimeControl "180+2"]
[EndTime "14:23:30 PST"]
[Termination "Cruel_Yaro won by resignation"]

1. Nf3 {[%clk 0:03:01.9]} 1... e6 {[%clk 0:02:59.1]} 2. g3 {[%clk 0:03:02.7]}
2... f5 {[%clk 0:02:59.7]} 3. Bg2 {[%clk 0:03:04.6]} 3... Nf6 {[%clk 0:03:00.6]}
4. O-O {[%clk 0:03:06.5]} 4... d5 {[%clk 0:02:58.4]} 5. c4 {[%clk 0:03:08.4]}
5... c6 {[%clk 0:02:59]} 6. d4 {[%clk 0:03:09.6]} 6... Bd6 {[%clk 0:02:59]} 7.
Nc3 {[%clk 0:03:04]} 7... O-O {[%clk 0:02:59.4]} 8. Bf4 {[%clk 0:03:05.5]} 8...
Bxf4 {[%clk 0:02:56.1]} 9. gxf4 {[%clk 0:03:07.4]} 9... b6 {[%clk 0:02:52]} 10.
Ne5 {[%clk 0:03:08.4]} 10... Ba6 {[%clk 0:02:51.5]} 11. b3 {[%clk 0:03:00]}
11... Qd6 {[%clk 0:02:44]} 12. Rc1 {[%clk 0:02:53.4]} 12... Nbd7 {[%clk
0:02:44.6]} 13. Qd3 {[%clk 0:02:28.9]} 13... Bb7 {[%clk 0:02:31.1]} 14. Rfd1
{[%clk 0:02:27.6]} 14... Rac8 {[%clk 0:02:29.5]} 15. Na4 {[%clk 0:02:21.8]}
15... Ne4 {[%clk 0:02:21.2]} 16. f3 {[%clk 0:02:07.6]} 16... Nef6 {[%clk
0:02:19.9]} 17. c5 {[%clk 0:02:08.6]} 17... Qb8 {[%clk 0:02:15]} 18. e3 {[%clk
0:02:02.9]} 18... Kh8 {[%clk 0:02:01.7]} 19. b4 {[%clk 0:02:02.5]} 19... b5
{[%clk 0:01:46.2]} 20. Nc3 {[%clk 0:02:03.1]} 20... Nxe5 {[%clk 0:01:43.3]} 21.
dxe5 {[%clk 0:01:50.4]} 21... Nh5 {[%clk 0:01:39.2]} 22. Ne2 {[%clk 0:01:22.9]}
22... g5 {[%clk 0:01:36.5]} 23. fxg5 {[%clk 0:01:23.7]} 23... Qxe5 {[%clk
0:01:11.3]} 24. f4 {[%clk 0:01:23.8]} 24... Qc7 {[%clk 0:01:06.1]} 25. Ng3
{[%clk 0:01:17.5]} 25... Ng7 {[%clk 0:01:01.5]} 26. a4 {[%clk 0:01:13.9]} 26...
bxa4 {[%clk 0:00:58.3]} 27. Ra1 {[%clk 0:01:14.6]} 27... e5 {[%clk 0:00:56.9]}
28. Ne2 {[%clk 0:01:05.3]} 28... Rce8 {[%clk 0:00:47.5]} 29. Rxa4 {[%clk
0:01:04.6]} 29... a6 {[%clk 0:00:48.6]} 30. Rf1 {[%clk 0:00:59.8]} 30... Re7
{[%clk 0:00:35.4]} 31. Ng3 {[%clk 0:00:58.7]} 31... Bc8 {[%clk 0:00:24.9]} 32.
Ra2 {[%clk 0:00:50.4]} 32... Rfe8 {[%clk 0:00:24.1]} 33. Raf2 {[%clk 0:00:51]}
33... Qb7 {[%clk 0:00:20.3]} 34. Qc3 {[%clk 0:00:51]} 34... Qc7 {[%clk
0:00:18.1]} 35. Qa1 {[%clk 0:00:43.1]} 35... Qb8 {[%clk 0:00:18.4]} 36. Rb1
{[%clk 0:00:30.6]} 36... Kg8 {[%clk 0:00:19.2]} 37. h4 {[%clk 0:00:32]} 37... d4
{[%clk 0:00:19.2]} 38. exd4 {[%clk 0:00:23.6]} 38... exf4 {[%clk 0:00:19.7]} 39.
Nf1 {[%clk 0:00:23]} 39... Bb7 {[%clk 0:00:08.4]} 40. Qa2+ {[%clk 0:00:16.8]}
40... Kh8 {[%clk 0:00:08.5]} 41. Qd2 {[%clk 0:00:17.2]} 41... Ne6 {[%clk
0:00:08.8]} 42. d5 {[%clk 0:00:18.4]} 42... cxd5 {[%clk 0:00:09.3]} 43. Bxd5
{[%clk 0:00:20]} 43... Bxd5 {[%clk 0:00:09.6]} 44. Qxd5 {[%clk 0:00:21.9]} 44...
Rd8 {[%clk 0:00:10.3]} 45. Qxf5 {[%clk 0:00:23.4]} 45... Rf8 {[%clk 0:00:06.9]}
46. Qd3 {[%clk 0:00:22.3]} 46... Qe5 {[%clk 0:00:05.7]} 47. Re2 {[%clk
0:00:23.2]} 47... Qg7 {[%clk 0:00:05.2]} 48. Rbe1 {[%clk 0:00:22.6]} 48... f3
{[%clk 0:00:05.8]} 49. Rf2 {[%clk 0:00:20.1]} 49... Nxg5 {[%clk 0:00:06.7]} 50.
Rxe7 {[%clk 0:00:15.3]} 50... Nh3+ {[%clk 0:00:04.8]} 51. Kh2 {[%clk 0:00:16.5]}
51... Nxf2 {[%clk 0:00:05]} 52. Rxg7 {[%clk 0:00:17.5]} 52... Nxd3 {[%clk
0:00:06.2]} 53. Rb7 {[%clk 0:00:18.8]} 53... Rg8 {[%clk 0:00:05.2]} 54. Ng3
{[%clk 0:00:18.4]} 54... f2 {[%clk 0:00:05.1]} 55. Nf1 {[%clk 0:00:19.1]} 55...
Rg1 {[%clk 0:00:05.5]} 56. Ne3 {[%clk 0:00:17.6]} 56... Re1 {[%clk 0:00:06.2]}
57. Rb8+ {[%clk 0:00:18.7]} 57... Kg7 {[%clk 0:00:06.4]} 58. Nf5+ {[%clk
0:00:20.6]} 58... Kg6 {[%clk 0:00:06]} 59. Ng3 {[%clk 0:00:21.4]} 59... f1=Q
{[%clk 0:00:04.7]} 60. Nxf1 {[%clk 0:00:23]} 60... Rxf1 {[%clk 0:00:06.6]} 61.
Rb6+ {[%clk 0:00:24]} 61... Kh5 {[%clk 0:00:07.9]} 62. Rxa6 {[%clk 0:00:25.2]}
62... Nxb4 {[%clk 0:00:05.2]} 63. Rb6 {[%clk 0:00:26.2]} 63... Nd5 {[%clk
0:00:06]} 64. Rb7 {[%clk 0:00:26.4]} 64... h6 {[%clk 0:00:06.4]} 65. Rd7 {[%clk
0:00:27.5]} 65... Nf4 {[%clk 0:00:06.8]} 66. c6 {[%clk 0:00:29.1]} 66... Rc1
{[%clk 0:00:07]} 67. Kg3 {[%clk 0:00:28]} 67... Ne6 {[%clk 0:00:05.6]} 68. Rd5+
{[%clk 0:00:28.7]} 68... Kg6 {[%clk 0:00:05.7]} 69. Rd6 {[%clk 0:00:29.8]} 69...
Kf5 {[%clk 0:00:06.7]} 70. Kf3 {[%clk 0:00:25.3]} 70... Rxc6 {[%clk 0:00:05.8]}
71. Rd5+ {[%clk 0:00:26.7]} 71... Kg6 {[%clk 0:00:06.3]} 72. h5+ {[%clk
0:00:27.5]} 72... Kf6 {[%clk 0:00:06.9]} 73. Kg4 {[%clk 0:00:28.2]} 73... Rc4+
{[%clk 0:00:07.4]} 74. Kh3 {[%clk 0:00:29.6]} 74... Nf4+ {[%clk 0:00:06.5]} 0-1

[Event "*** Titled Tuesday Blitz"]
[Site "Chess.com"]
[Date "2019.11.05"]
[Round "6"]
[White "StockholmMissile"]
[Black "r31415"]
[Result "1-0"]
[WhiteElo "2301"]
[BlackElo "2412"]
[TimeControl "180+2"]
[EndTime "14:23:39 PST"]
[Termination "StockholmMissile won by checkmate"]

1. d4 {[%clk 0:03:01.9]} 1... d6 {[%clk 0:03:01.9]} 2. e4 {[%clk 0:02:59]} 2...
Nf6 {[%clk 0:03:02.9]} 3. Nd2 {[%clk 0:02:59.3]} 3... e5 {[%clk 0:03:02.2]} 4.
Ngf3 {[%clk 0:02:59]} 4... Nbd7 {[%clk 0:02:56]} 5. c3 {[%clk 0:02:54.5]} 5...
Be7 {[%clk 0:02:47.5]} 6. Bd3 {[%clk 0:02:55]} 6... O-O {[%clk 0:02:48.6]} 7.
O-O {[%clk 0:02:55.2]} 7... Re8 {[%clk 0:02:49.6]} 8. Re1 {[%clk 0:02:49.4]}
8... Bf8 {[%clk 0:02:50.4]} 9. a4 {[%clk 0:02:47.3]} 9... a5 {[%clk 0:02:50.2]}
10. Nf1 {[%clk 0:02:43.1]} 10... b6 {[%clk 0:02:39.2]} 11. Ng3 {[%clk
0:02:34.2]} 11... Bb7 {[%clk 0:02:40.3]} 12. d5 {[%clk 0:02:26.7]} 12... c6
{[%clk 0:02:33.9]} 13. dxc6 {[%clk 0:02:26.2]} 13... Bxc6 {[%clk 0:02:34.1]} 14.
Bb5 {[%clk 0:02:26.7]} 14... Qc7 {[%clk 0:02:30.6]} 15. Qc2 {[%clk 0:01:51.2]}
15... Rad8 {[%clk 0:02:31.3]} 16. h3 {[%clk 0:01:48.2]} 16... Nc5 {[%clk
0:02:32.2]} 17. Bg5 {[%clk 0:01:45.6]} 17... Ncd7 {[%clk 0:02:18.8]} 18. Rad1
{[%clk 0:01:40.5]} 18... g6 {[%clk 0:02:10.9]} 19. Qb3 {[%clk 0:01:30.8]} 19...
Nc5 {[%clk 0:02:06.3]} 20. Qc4 {[%clk 0:01:30.9]} 20... Be7 {[%clk 0:02:01.3]}
21. Bxc6 {[%clk 0:01:19.3]} 21... Qxc6 {[%clk 0:02:00]} 22. Qb5 {[%clk
0:01:13.4]} 22... Qxb5 {[%clk 0:01:47.4]} 23. axb5 {[%clk 0:01:15.3]} 23... Kg7
{[%clk 0:01:42.7]} 24. Nd2 {[%clk 0:01:14.2]} 24... h6 {[%clk 0:01:11.2]} 25.
Bxf6+ {[%clk 0:01:13.1]} 25... Kxf6 {[%clk 0:01:06.1]} 26. Nc4 {[%clk
0:01:14.3]} 26... Ke6 {[%clk 0:00:42.2]} 27. Nf1 {[%clk 0:01:07.7]} 27... Rb8
{[%clk 0:00:40.3]} 28. Nfe3 {[%clk 0:01:01.4]} 28... Rec8 {[%clk 0:00:35.9]} 29.
f3 {[%clk 0:00:58.4]} 29... Rb7 {[%clk 0:00:33.6]} 30. Re2 {[%clk 0:00:48.6]}
30... Rcb8 {[%clk 0:00:28.3]} 31. Red2 {[%clk 0:00:46.1]} 31... Rd7 {[%clk
0:00:26.3]} 32. Nd5 {[%clk 0:00:44.6]} 32... Bd8 {[%clk 0:00:27.2]} 33. b4
{[%clk 0:00:24.5]} 33... axb4 {[%clk 0:00:16.3]} 34. Nxb4 {[%clk 0:00:26.4]}
34... Ra8 {[%clk 0:00:14]} 35. Rxd6+ {[%clk 0:00:26.3]} 35... Rxd6 {[%clk
0:00:12.4]} 36. Rxd6+ {[%clk 0:00:28.2]} 36... Ke7 {[%clk 0:00:11.8]} 37. Nc6+
{[%clk 0:00:23.8]} 37... Ke8 {[%clk 0:00:11.7]} 38. Rxd8+ {[%clk 0:00:18.9]}
38... Rxd8 {[%clk 0:00:12.6]} 39. Nxd8 {[%clk 0:00:20.8]} 39... Kxd8 {[%clk
0:00:14.3]} 40. Nxb6 {[%clk 0:00:22.4]} 40... f5 {[%clk 0:00:09.9]} 41. exf5
{[%clk 0:00:21]} 41... gxf5 {[%clk 0:00:11]} 42. Nc4 {[%clk 0:00:21.6]} 42... e4
{[%clk 0:00:11.4]} 43. fxe4 {[%clk 0:00:22.6]} 43... Nxe4 {[%clk 0:00:11.5]} 44.
Ne3 {[%clk 0:00:21.5]} 44... Nxc3 {[%clk 0:00:09.2]} 45. Nxf5 {[%clk 0:00:22.6]}
45... Nxb5 {[%clk 0:00:09.3]} 46. Nxh6 {[%clk 0:00:23.6]} 46... Ke7 {[%clk
0:00:11.2]} 47. Kh2 {[%clk 0:00:24.3]} 47... Kf6 {[%clk 0:00:12.5]} 48. Ng4+
{[%clk 0:00:25.5]} 48... Kg5 {[%clk 0:00:13.6]} 49. Kg3 {[%clk 0:00:25.2]} 49...
Nd4 {[%clk 0:00:14.9]} 50. h4+ {[%clk 0:00:26.1]} 50... Kh5 {[%clk 0:00:16.1]}
51. Nf6+ {[%clk 0:00:26.8]} 51... Kg6 {[%clk 0:00:17.1]} 52. Ne4 {[%clk
0:00:25.2]} 52... Kh5 {[%clk 0:00:18.3]} 53. Kh3 {[%clk 0:00:24.2]} 53... Kg6
{[%clk 0:00:17.2]} 54. g4 {[%clk 0:00:23.3]} 54... Nf3 {[%clk 0:00:17.7]} 55.
Kg3 {[%clk 0:00:21.6]} 55... Nd4 {[%clk 0:00:16.6]} 56. Kf4 {[%clk 0:00:18.3]}
56... Ne2+ {[%clk 0:00:16.2]} 57. Ke3 {[%clk 0:00:17.7]} 57... Ng1 {[%clk
0:00:11.7]} 58. Ng5 {[%clk 0:00:13.4]} 58... Kf6 {[%clk 0:00:05.8]} 59. Kf2
{[%clk 0:00:14]} 59... Ke5 {[%clk 0:00:07.4]} 60. Kxg1 {[%clk 0:00:14.2]} 60...
Kf4 {[%clk 0:00:09.3]} 61. Nf3 {[%clk 0:00:09.6]} 61... Kxg4 {[%clk 0:00:10.5]}
62. Kh2 {[%clk 0:00:10.9]} 62... Kf4 {[%clk 0:00:10.4]} 63. Kh3 {[%clk
0:00:12.1]} 63... Kf5 {[%clk 0:00:09.8]} 64. h5 {[%clk 0:00:12.3]} 64... Kf6
{[%clk 0:00:10.4]} 65. Kh4 {[%clk 0:00:14.2]} 65... Kg7 {[%clk 0:00:11.2]} 66.
Kg5 {[%clk 0:00:15.4]} 66... Kh7 {[%clk 0:00:12.5]} 67. Ne5 {[%clk 0:00:17.3]}
67... Kg8 {[%clk 0:00:14.3]} 68. Ng4 {[%clk 0:00:18.5]} 68... Kh8 {[%clk
0:00:16.2]} 69. Kg6 {[%clk 0:00:19.1]} 69... Kg8 {[%clk 0:00:17.3]} 70. h6
{[%clk 0:00:20.7]} 70... Kh8 {[%clk 0:00:19.2]} 71. Ne5 {[%clk 0:00:19.8]} 71...
Kg8 {[%clk 0:00:21.1]} 72. h7+ {[%clk 0:00:20.3]} 72... Kf8 {[%clk 0:00:22.5]}
73. h8=Q+ {[%clk 0:00:21.3]} 73... Ke7 {[%clk 0:00:24.4]} 74. Qf6+ {[%clk
0:00:22.4]} 74... Ke8 {[%clk 0:00:25.1]} 75. Qe6+ {[%clk 0:00:23.2]} 75... Kd8
{[%clk 0:00:27]} 76. Nf7+ {[%clk 0:00:24.2]} 76... Kc7 {[%clk 0:00:27.9]} 77.
Qd6+ {[%clk 0:00:25.3]} 77... Kb7 {[%clk 0:00:29.3]} 78. Kf6 {[%clk 0:00:25]}
78... Kc8 {[%clk 0:00:30.7]} 79. Ke6 {[%clk 0:00:25.9]} 79... Kb7 {[%clk
0:00:32.6]} 80. Kd7 {[%clk 0:00:25.8]} 80... Ka8 {[%clk 0:00:33.3]} 81. Kc7
{[%clk 0:00:25.9]} 81... Ka7 {[%clk 0:00:35.2]} 82. Qb6+ {[%clk 0:00:26.5]}
82... Ka8 {[%clk 0:00:36.7]} 83. Qa6# {[%clk 0:00:27.8]} 1-0

[Event "*** Titled Tuesday Blitz"]
[Site "Chess.com"]
[Date "2019.11.05"]
[Round "6"]
[White "SaraciNderim"]
[Black "wonderfultime"]
[Result "1/2-1/2"]
[WhiteElo "2819"]
[BlackElo "2953"]
[TimeControl "180+2"]
[EndTime "14:23:55 PST"]
[Termination "Game drawn by agreement"]

1. d4 {[%clk 0:03:01.3]} 1... Nf6 {[%clk 0:02:57]} 2. Nf3 {[%clk 0:03:02.2]}
2... e6 {[%clk 0:02:58.1]} 3. g3 {[%clk 0:03:03.3]} 3... b5 {[%clk 0:02:56.3]}
4. Bg2 {[%clk 0:03:04.5]} 4... Bb7 {[%clk 0:02:57.5]} 5. O-O {[%clk 0:03:05.5]}
5... Be7 {[%clk 0:02:59.1]} 6. e3 {[%clk 0:03:06.8]} 6... O-O {[%clk 0:03:00.1]}
7. b3 {[%clk 0:03:06.9]} 7... d6 {[%clk 0:02:55.8]} 8. Bb2 {[%clk 0:03:07.5]}
8... Nbd7 {[%clk 0:02:56.8]} 9. Nbd2 {[%clk 0:03:08.7]} 9... c5 {[%clk
0:02:57.5]} 10. c4 {[%clk 0:03:09.7]} 10... b4 {[%clk 0:02:55.8]} 11. a3 {[%clk
0:03:10.4]} 11... a5 {[%clk 0:02:56.3]} 12. Qc2 {[%clk 0:03:11.7]} 12... Qb6
{[%clk 0:02:56.5]} 13. axb4 {[%clk 0:03:11.6]} 13... axb4 {[%clk 0:02:57.1]} 14.
Rfd1 {[%clk 0:03:13.2]} 14... h6 {[%clk 0:02:58.1]} 15. Ne1 {[%clk 0:03:12]}
15... Bxg2 {[%clk 0:02:58.1]} 16. Kxg2 {[%clk 0:03:13.9]} 16... Qb7+ {[%clk
0:02:59.4]} 17. Nef3 {[%clk 0:03:14.1]} 17... Rfc8 {[%clk 0:02:39.2]} 18. Rxa8
{[%clk 0:03:13.2]} 18... Rxa8 {[%clk 0:02:39.9]} 19. Ra1 {[%clk 0:03:14.2]}
19... Bf8 {[%clk 0:02:39.3]} 20. Rxa8 {[%clk 0:03:13]} 20... Qxa8 {[%clk
0:02:41.2]} 21. Qb1 {[%clk 0:03:13.8]} 21... Qb7 {[%clk 0:02:33.7]} 22. h3
{[%clk 0:03:11.7]} 22... Be7 {[%clk 0:02:25.9]} 23. Kg1 {[%clk 0:03:08.3]} 23...
d5 {[%clk 0:02:12.8]} 24. cxd5 {[%clk 0:03:02.2]} 24... Qxd5 {[%clk 0:02:13.6]}
25. Qc2 {[%clk 0:02:52.5]} 25... cxd4 {[%clk 0:02:12.3]} 26. Bxd4 {[%clk
0:02:52.2]} 26... e5 {[%clk 0:02:02.9]} 27. Bb2 {[%clk 0:02:30]} 27... Qe6
{[%clk 0:01:57.7]} 28. Qc8+ {[%clk 0:02:24.6]} 28... Bf8 {[%clk 0:01:47.8]} 29.
Nxe5 {[%clk 0:02:24.8]} 29... Qxh3 {[%clk 0:01:42.5]} 30. Nxd7 {[%clk
0:02:10.6]} 30... Nxd7 {[%clk 0:01:44.4]} 31. Bd4 {[%clk 0:02:07.3]} 31... Qg4
{[%clk 0:01:37.5]} 32. Kg2 {[%clk 0:01:55.4]} 32... h5 {[%clk 0:01:38.6]} 33. f3
{[%clk 0:01:35.4]} 33... Qe6 {[%clk 0:01:37.8]} 34. Nc4 {[%clk 0:01:35.3]} 34...
Qd5 {[%clk 0:01:28.1]} 35. Qd8 {[%clk 0:01:24.7]} 35... f6 {[%clk 0:01:22.7]}
36. Qe8 {[%clk 0:01:09.4]} 36... Qf7 {[%clk 0:01:17.3]} 37. Qa8 {[%clk 0:01:10]}
37... Kh7 {[%clk 0:00:55.7]} 38. Qc6 {[%clk 0:01:08.1]} 38... Kg8 {[%clk
0:00:45.3]} 39. Qb5 {[%clk 0:01:06.4]} 39... g6 {[%clk 0:00:38.4]} 40. e4 {[%clk
0:01:05.7]} 40... Qe6 {[%clk 0:00:39.2]} 41. e5 {[%clk 0:01:06.5]} 41... fxe5
{[%clk 0:00:35.8]} 42. Nxe5 {[%clk 0:00:52.7]} 42... Qxe5 {[%clk 0:00:19.5]} 43.
Qxe5 {[%clk 0:00:54.6]} 43... Nxe5 {[%clk 0:00:17.8]} 44. Bxe5 {[%clk
0:00:55.4]} 44... Kf7 {[%clk 0:00:19.7]} 45. g4 {[%clk 0:00:30.6]} 45... Ke6
{[%clk 0:00:20.1]} 46. Bb2 {[%clk 0:00:29.5]} 46... Be7 {[%clk 0:00:13.8]} 47.
gxh5 {[%clk 0:00:28.7]} 47... gxh5 {[%clk 0:00:15.7]} 48. Kg3 {[%clk 0:00:28.6]}
48... Kf5 {[%clk 0:00:16.6]} 49. Bc1 {[%clk 0:00:28.8]} 49... Bg5 {[%clk
0:00:12.1]} 50. Bb2 {[%clk 0:00:29.3]} 50... Bf6 {[%clk 0:00:11.3]} 51. Bc1
{[%clk 0:00:28]} 51... Bg5 {[%clk 0:00:09.1]} 52. Bb2 {[%clk 0:00:28.6]} 52...
Bd2 {[%clk 0:00:10.3]} 53. Bd4 {[%clk 0:00:27.5]} 53... Be1+ {[%clk 0:00:10.8]}
54. Kg2 {[%clk 0:00:27.1]} 54... h4 {[%clk 0:00:11.3]} 55. Bc5 {[%clk
0:00:26.4]} 55... Kf4 {[%clk 0:00:10.1]} 56. Bb6 {[%clk 0:00:25.7]} 56... Bc3
{[%clk 0:00:09.9]} 57. Bd8 {[%clk 0:00:26]} 57... Be1 {[%clk 0:00:08.8]} 58. Bb6
{[%clk 0:00:21.1]} 58... Ke5 {[%clk 0:00:09.4]} 59. Be3 {[%clk 0:00:21.1]} 59...
Kf5 {[%clk 0:00:10.1]} 60. Kh3 {[%clk 0:00:21.7]} 60... Bg3 {[%clk 0:00:10.3]}
61. Bc5 {[%clk 0:00:22]} 61... Be1 {[%clk 0:00:11.1]} 62. Bd6 {[%clk 0:00:22.9]}
62... Ke6 {[%clk 0:00:11]} 63. Bc7 {[%clk 0:00:23.3]} 63... Kd5 {[%clk
0:00:12.3]} 64. Bd8 {[%clk 0:00:23.9]} 64... Kd4 {[%clk 0:00:13.1]} 65. Bxh4
{[%clk 0:00:19.3]} 65... Bd2 {[%clk 0:00:07]} 66. Bf6+ {[%clk 0:00:17.9]} 66...
Kd3 {[%clk 0:00:07.9]} 67. Be7 {[%clk 0:00:18.4]} 67... Kc2 {[%clk 0:00:09.2]}
68. Kg4 {[%clk 0:00:19.2]} 68... Kxb3 {[%clk 0:00:10.3]} 69. f4 {[%clk
0:00:20.5]} 69... Kc4 {[%clk 0:00:11.2]} 70. Bxb4 {[%clk 0:00:18.2]} 70... Bxb4
{[%clk 0:00:13.1]} 71. f5 {[%clk 0:00:19.4]} 1/2-1/2

[Event "*** Titled Tuesday Blitz"]
[Site "Chess.com"]
[Date "2019.11.05"]
[Round "6"]
[White "vlad10898"]
[Black "JonahWillow"]
[Result "1-0"]
[WhiteElo "2676"]
[BlackElo "2789"]
[TimeControl "180+2"]
[EndTime "14:24:12 PST"]
[Termination "vlad10898 won by resignation"]

1. e4 {[%clk 0:03:01.9]} 1... c5 {[%clk 0:03:00.9]} 2. Nf3 {[%clk 0:03:03]} 2...
Nc6 {[%clk 0:03:01.4]} 3. d4 {[%clk 0:03:04.2]} 3... cxd4 {[%clk 0:03:03.3]} 4.
Nxd4 {[%clk 0:03:05.8]} 4... g6 {[%clk 0:03:04.8]} 5. c4 {[%clk 0:03:06.9]} 5...
Nf6 {[%clk 0:03:05.3]} 6. Nc3 {[%clk 0:03:07.9]} 6... d6 {[%clk 0:03:07]} 7. Be2
{[%clk 0:03:09.2]} 7... Nxd4 {[%clk 0:03:08]} 8. Qxd4 {[%clk 0:03:11.1]} 8...
Bg7 {[%clk 0:03:09.6]} 9. Be3 {[%clk 0:03:12.3]} 9... O-O {[%clk 0:03:11.3]} 10.
Qd2 {[%clk 0:03:12.2]} 10... a5 {[%clk 0:03:12.9]} 11. f3 {[%clk 0:02:56.2]}
11... a4 {[%clk 0:03:09.5]} 12. Kf2 {[%clk 0:02:57.4]} 12... Qa5 {[%clk
0:03:00.5]} 13. Rac1 {[%clk 0:02:57.8]} 13... Be6 {[%clk 0:03:00.1]} 14. Nd5
{[%clk 0:02:56.5]} 14... Bxd5 {[%clk 0:02:32.7]} 15. Qxa5 {[%clk 0:02:56.8]}
15... Rxa5 {[%clk 0:02:32.7]} 16. cxd5 {[%clk 0:02:58.3]} 16... Nd7 {[%clk
0:02:22.2]} 17. Rc7 {[%clk 0:02:58.3]} 17... Nc5 {[%clk 0:02:23.2]} 18. Rxe7
{[%clk 0:02:40.5]} 18... Bxb2 {[%clk 0:02:15.5]} 19. Bf4 {[%clk 0:02:41.5]}
19... Bd4+ {[%clk 0:02:12.8]} 20. Kg3 {[%clk 0:02:26.1]} 20... Rd8 {[%clk
0:02:10.2]} 21. Rc7 {[%clk 0:02:08.7]} 21... a3 {[%clk 0:02:02.1]} 22. h4 {[%clk
0:02:06.2]} 22... h5 {[%clk 0:01:52.1]} 23. Rb1 {[%clk 0:01:51.3]} 23... Ra4
{[%clk 0:01:45.2]} 24. Kh3 {[%clk 0:01:20.1]} 24... Bf2 {[%clk 0:01:34.8]} 25.
Bg5 {[%clk 0:01:13.4]} 25... Rda8 {[%clk 0:01:29.2]} 26. Be7 {[%clk 0:01:07.8]}
26... f5 {[%clk 0:01:20.9]} 27. Bxd6 {[%clk 0:00:59.8]} 27... Nxe4 {[%clk
0:01:05.6]} 28. fxe4 {[%clk 0:00:25.7]} 28... Rxe4 {[%clk 0:01:07.5]} 29. g3
{[%clk 0:00:26.7]} 29... Rxe2 {[%clk 0:00:58]} 30. Rbxb7 {[%clk 0:00:27.2]}
30... Bd4 {[%clk 0:00:59.3]} 31. Bxa3 {[%clk 0:00:15]} 31... Rxa2 {[%clk
0:00:54.2]} 32. d6 {[%clk 0:00:12.9]} 32... R2xa3 {[%clk 0:00:24.8]} 33. d7
{[%clk 0:00:14.1]} 33... Rd8 {[%clk 0:00:26.4]} 34. Rb8 {[%clk 0:00:08.2]} 34...
Bf6 {[%clk 0:00:15.2]} 35. Rcc8 {[%clk 0:00:09.4]} 35... Kg7 {[%clk 0:00:03.9]}
36. Rxd8 {[%clk 0:00:09.6]} 36... Bxd8 {[%clk 0:00:05.8]} 37. Rxd8 {[%clk
0:00:10.7]} 37... Rd3 {[%clk 0:00:07.7]} 38. Kg2 {[%clk 0:00:11.7]} 38... Kf6
{[%clk 0:00:07.5]} 39. Rf8+ {[%clk 0:00:11.1]} 39... Ke7 {[%clk 0:00:08.9]} 40.
Rg8 {[%clk 0:00:12.3]} 40... Rd6 {[%clk 0:00:08.9]} 41. d8=Q+ {[%clk 0:00:11.3]}
41... Rxd8 {[%clk 0:00:10.8]} 42. Rxg6 {[%clk 0:00:12.7]} 42... Rh8 {[%clk
0:00:10.1]} 43. Kf3 {[%clk 0:00:13.3]} 43... Kf7 {[%clk 0:00:11.2]} 44. Ra6
{[%clk 0:00:14.4]} 44... Rg8 {[%clk 0:00:12.3]} 45. Rh6 {[%clk 0:00:15.1]} 45...
Ra8 {[%clk 0:00:11.6]} 46. Kf4 {[%clk 0:00:09.2]} 46... Ra3 {[%clk 0:00:05.1]}
47. Rxh5 {[%clk 0:00:09.6]} 47... Ke6 {[%clk 0:00:04]} 48. Rh6+ {[%clk
0:00:08.7]} 48... Kf7 {[%clk 0:00:05.3]} 49. Rb6 {[%clk 0:00:09.9]} 49... Kg7
{[%clk 0:00:06]} 50. h5 {[%clk 0:00:08.6]} 50... Rc3 {[%clk 0:00:05.1]} 51. Rb5
{[%clk 0:00:08.4]} 51... Rc4+ {[%clk 0:00:03.1]} 52. Kxf5 {[%clk 0:00:08.7]}
52... Kh6 {[%clk 0:00:05]} 53. g4 {[%clk 0:00:10.2]} 53... Rc6 {[%clk
0:00:05.9]} 54. Re5 {[%clk 0:00:09.9]} 54... Rc3 {[%clk 0:00:05.2]} 55. Re6+
{[%clk 0:00:10.9]} 55... Kg7 {[%clk 0:00:07.1]} 56. Rg6+ {[%clk 0:00:10.1]}
56... Kf7 {[%clk 0:00:08.4]} 57. Kg5 {[%clk 0:00:09.5]} 57... Rc5+ {[%clk
0:00:09.4]} 58. Kh4 {[%clk 0:00:11]} 58... Rc1 {[%clk 0:00:10.3]} 59. Ra6 {[%clk
0:00:12.1]} 59... Kg7 {[%clk 0:00:11.5]} 60. h6+ {[%clk 0:00:10.6]} 60... Kh7
{[%clk 0:00:12.5]} 61. Kh5 {[%clk 0:00:12.2]} 61... Rh1+ {[%clk 0:00:12]} 62.
Kg5 {[%clk 0:00:13.5]} 62... Kh8 {[%clk 0:00:12.8]} 63. Ra7 {[%clk 0:00:14.6]}
63... Rb1 {[%clk 0:00:13.6]} 64. Kh5 {[%clk 0:00:14.8]} 64... Rb5+ {[%clk
0:00:14]} 65. g5 {[%clk 0:00:16.2]} 65... Rc5 {[%clk 0:00:15.9]} 66. Rf7 {[%clk
0:00:14.6]} 66... Ra5 {[%clk 0:00:16.6]} 67. Kg6 {[%clk 0:00:15.7]} 67... Ra6+
{[%clk 0:00:17.8]} 68. Rf6 {[%clk 0:00:17.1]} 68... Ra8 {[%clk 0:00:19.7]} 69.
Rc6 {[%clk 0:00:15.3]} 69... Rd8 {[%clk 0:00:19.2]} 70. Re6 {[%clk 0:00:10.7]}
70... Ra8 {[%clk 0:00:20.1]} 71. Kf5 {[%clk 0:00:11.7]} 71... Ra5+ {[%clk
0:00:20.9]} 72. Re5 {[%clk 0:00:13.2]} 72... Ra1 {[%clk 0:00:21.2]} 73. g6
{[%clk 0:00:14.6]} 73... Rf1+ {[%clk 0:00:21.9]} 74. Ke6 {[%clk 0:00:16.1]}
74... Ra1 {[%clk 0:00:22.5]} 75. Kf6 {[%clk 0:00:15.4]} 75... Ra6+ {[%clk
0:00:21.9]} 76. Re6 {[%clk 0:00:16.2]} 76... Ra8 {[%clk 0:00:23.6]} 77. Rd6
{[%clk 0:00:07.4]} 77... Rb8 {[%clk 0:00:23.2]} 78. Ke6 {[%clk 0:00:06.2]} 78...
Kg8 {[%clk 0:00:19.9]} 79. Ke7 {[%clk 0:00:06.7]} 79... Rb7+ {[%clk 0:00:19.3]}
80. Rd7 {[%clk 0:00:08]} 1-0